bitfinex/quotes_ETHUSD_20220218
["timestamp","ask_amount","ask_price","bid_price","bid_amount"]
[1645147844241,2.999,2876.6,2875.8,2.04825858]
[1645147844443,1.11435056,2876.2,2875.1,2.60838]
[1645147844696,3.999,2876.1,2875.0,0.00271523]
[1645147844897,27.7563,2876.1,2875.0,0.00271523]
[1645147845100,5.0,2875.9,2875.0,0.00271523]
[1645147845295,1.6728,2875.8,2875.0,0.00271523]
[1645147845497,0.95807446,2875.3,2875.0,0.00271523]
[1645147845698,1.45707446,2875.3,2875.0,0.00271523]
[1645147845896,1.75707446,2875.3,2875.0,0.00271523]
[1645147846297,2.05707446,2875.3,2875.0,0.00271523]
[1645147846498,0.87001,2875.2,2875.0,0.00271523]
[1645147846797,0.6729,2875.1,2875.0,0.00271523]
[1645147846995,0.9729,2875.1,2875.0,0.00271523]
[1645147849644,4.4729,2875.1,2875.0,0.00271523]
[1645147850644,4.4729,2875.1,2875.0,1.523e-05]
[1645147851050,0.8703,2874.9,2874.4,1.5]
[1645147851249,5.04321,2874.8,2874.4,1.5]
[1645147851650,1.84321,2874.8,2874.4,1.5]
[1645147852050,0.84522677,2874.7,2874.4,1.5]
[1645147852283,0.499,2874.6,2874.4,1.5]
[1645147852688,2.5393,2874.6,2874.4,1.5]
[1645147853487,0.8701,2874.5,2874.4,1.5]
[1645147853683,1.3691,2874.5,2874.4,1.5]
[1645147854485,1.3691,2874.5,2874.1,0.84894656]
[1645147854985,2.9292,2874.6,2874.1,0.84894656]
[1645147857945,2.6129812,2875.1,2874.1,0.84894656]
[1645147857946,0.0028712,2875.1,2874.1,0.84894656]
[1645147858144,0.0028712,2875.1,2874.2,2.35223677]
[1645147858342,2.9143,2875.2,2874.3,1.48236178]
[1645147858543,0.00287135,2875.1,2874.3,1.48236178]
[1645147858941,0.00287135,2875.1,2875.0,0.98079166]
[1645147859543,2.7452,2875.8,2875.0,0.98079166]
[1645147859787,0.00287144,2875.2,2875.0,1.28079166]
[1645147859982,0.00287144,2875.2,2875.0,1.94879166]
[1645147860186,0.00287144,2875.2,2875.1,2.35154211]
[1645147860389,0.00287144,2875.2,2875.1,2.52544211]
[1645147860784,2.7452,2875.8,2875.1,2.52544211]
[1645147860987,2.7452,2875.8,2875.0,22.52879166]
[1645147860988,0.0028714,2875.3,2875.2,1.65579211]
[1645147861189,0.0028714,2875.3,2875.2,0.3]
[1645147861390,0.0028714,2875.3,2875.1,0.1738]
[1645147861588,0.0028714,2875.3,2875.0,0.98079166]
[1645147861990,2.7452,2875.8,2875.6,1.01595316]
[1645147862388,3.61495,2875.8,2874.7,0.86975]
[1645147862997,0.86978,2875.7,2874.7,0.86975]
[1645147863193,0.86978,2875.7,2874.5,2.03945]
[1645147863438,0.00287135,2875.4,2875.2,0.93428145]
[1645147864436,0.86979,2875.6,2875.2,0.93428145]
[1645147864637,0.00287133,2875.4,2875.2,0.93428145]
[1645147864937,0.00287133,2875.4,2874.5,3.03945]
[1645147865139,0.00287133,2875.4,2874.6,1.48223549]
[1645147865338,0.00287133,2875.4,2874.5,1.3]
[1645147865540,7.11528521,2875.8,2874.5,1.3]
[1645147865739,0.00287146,2875.1,2874.5,1.3]
[1645147865937,0.00287146,2875.1,2874.6,1.09461164]
[1645147866742,0.86987,2875.4,2874.6,1.09461164]
[1645147866942,1.73973,2875.4,2875.2,0.8915571]
[1645147867492,0.86986,2875.4,2875.2,0.8915571]
[1645147868285,0.87273133,2875.4,2875.2,0.8915571]
[1645147869186,0.86986,2875.4,2875.2,0.8915571]
[1645147869387,0.87273133,2875.4,2875.2,0.8915571]
[1645147870087,0.87273133,2875.4,2874.5,2.16982]
[1645147870287,0.86986,2875.4,2874.6,1.4823286]
[1645147870487,0.87273133,2875.4,2874.6,1.4823286]
[1645147870691,0.87273133,2875.4,2874.5,2.16982]
[1645147870932,0.87273133,2875.4,2875.0,1.04769283]
[1645147871638,0.86986,2875.4,2875.0,1.04769283]
[1645147871836,0.00287137,2875.3,2875.0,1.04769283]
[1645147872638,0.86986,2875.4,2875.0,1.04769283]
[1645147872839,0.86986,2875.4,2875.0,1.04610324]
[1645147873043,0.00287139,2875.3,2875.0,1.04610324]
[1645147873940,2.7452,2875.8,2875.7,0.89553158]
[1645147879042,2.7452,2875.8,2875.1,1.73916]
[1645147879244,2.7452,2875.8,2874.9,1.73916]
[1645147880145,0.0028713,2875.5,2874.9,1.73916]
[1645147880342,0.0028713,2875.5,2875.1,0.8832229]
[1645147880744,0.0028713,2875.5,2875.1,1.8832229]
[1645147881152,2.7452,2875.8,2875.1,1.8832229]
[1645147881349,0.00287132,2875.4,2875.1,1.7528629]
[1645147881551,0.00287132,2875.4,2875.1,0.8832229]
[1645147882388,0.86974,2875.7,2875.1,0.8832229]
[1645147882589,0.00287134,2875.4,2875.1,0.8832229]
[1645147883493,2.7452,2875.8,2875.1,1.7529029]
[1645147883893,0.00287134,2875.4,2875.1,1.7529029]
[1645147884094,0.00287134,2875.4,2875.2,1.78205272]
[1645147884294,0.00287134,2875.4,2875.3,1.48205272]
[1645147884792,2.7452,2875.8,2875.3,4.22101272]
[1645147884994,0.00287131,2875.5,2875.4,1.48205272]
[1645147885395,0.00287131,2875.5,2875.4,1.0]
[1645147885793,0.00287131,2875.5,2875.3,0.86958]
[1645147886044,0.86972,2875.7,2875.1,0.8832229]
[1645147886246,0.00287127,2875.6,2875.1,1.1832229]
[1645147886442,0.00287127,2875.6,2875.2,1.48203976]
[1645147886842,0.00287127,2875.6,2875.2,2.48203976]
[1645147887043,0.00287127,2875.6,2875.1,1.1832229]
[1645147887242,2.7452,2875.8,2875.2,1.48204512]
[1645147887446,0.00287129,2875.5,2875.2,1.48204512]
[1645147887644,0.00287129,2875.5,2875.2,2.48204512]
[1645147887943,0.00287129,2875.5,2875.2,1.0]
[1645147888345,2.7452,2875.8,2875.1,2.1832229]
[1645147888544,2.7452,2875.8,2875.6,1.11919971]
[1645147888945,2.7452,2875.8,2875.1,0.3]
[1645147889146,2.7452,2875.8,2875.1,0.86971]
[1645147889346,3.61489,2875.8,2874.8,0.1738]
[1645147889544,3.61489,2875.8,2874.9,1.48216559]
[1645147889785,0.00287126,2875.6,2875.0,0.3]
[1645147889986,0.86982,2875.5,2875.4,1.10246212]
[1645147890388,1.73963,2875.5,2875.4,1.10246212]
[1645147890588,0.00287126,2875.6,2875.4,1.10246212]
[1645147890786,2.7452,2875.8,2875.4,1.10246212]
[1645147890989,0.87263126,2875.6,2875.4,1.10246212]
[1645147891292,0.87263126,2875.6,2874.6,2.16976]
[1645147891488,0.87263126,2875.6,2874.9,0.86979]
[1645147891691,0.87263126,2875.6,2875.0,0.3]
[1645147891892,2.7452,2875.8,2875.1,1.48211811]
[1645147892095,2.7452,2875.8,2875.2,2.35160811]
[1645147892296,0.00287134,2875.4,2875.3,1.78211811]
[1645147892492,0.01148322,2875.9,2875.3,1.78211811]
[1645147892696,0.01148322,2875.9,2875.4,28.26795055]
[1645147892895,0.01148322,2875.9,2875.5,21.76211811]
[1645147893092,0.01148322,2875.9,2875.7,20.28]
[1645147893292,0.01148322,2875.9,2875.6,3.1639065]
[1645147893293,0.00494535,2876.8,2875.9,0.86923]
[1645147893537,0.00494535,2876.8,2876.1,0.86924]
[1645147894037,0.00494535,2877.1,2876.1,0.86924]
[1645147894234,0.00494535,2877.1,2876.3,0.86925]
[1645147894434,0.00494535,2877.1,2876.8,0.86539777]
[1645147895538,0.00494535,2877.1,2876.8,1.73457777]
[1645147895939,0.00681824,2877.1,2876.8,1.16539777]
[1645147896142,0.00681824,2877.1,2876.1,1.0]
[1645147896342,1.37590345,2877.1,2875.7,1.0]
[1645147896546,0.87008521,2877.0,2875.7,1.0]
[1645147896744,0.50394535,2876.9,2875.6,0.53082256]
[1645147896944,0.50394535,2876.9,2875.7,1.48168252]
[1645147897199,0.00307714,2876.5,2876.1,1.09753238]
[1645147897597,0.00307714,2876.5,2876.1,1.39753238]
[1645147897997,2.71378521,2877.1,2876.1,1.39753238]
[1645147897998,0.00494535,2876.6,2876.1,1.39753238]
[1645147898197,0.00307718,2876.4,2876.1,1.39753238]
[1645147899203,0.86951,2876.5,2876.1,1.09753238]
[1645147899403,0.00802255,2876.4,2876.1,1.09753238]
[1645147900000,0.0030772,2876.4,2876.1,1.09753238]
[1645147900202,0.0030772,2876.4,2875.7,0.86948]
[1645147900402,0.86953,2876.4,2875.6,0.53082256]
[1645147900603,0.87249121,2876.4,2875.6,0.53082256]
[1645147900799,0.87743656,2876.4,2875.6,0.53082256]
[1645147901235,0.87743656,2876.4,2875.9,1.11796386]
[1645147901638,0.87447535,2876.4,2875.9,1.11796386]
[1645147901941,0.87253125,2876.3,2875.9,1.11796386]
[1645147902438,0.00296125,2876.3,2875.9,1.11796386]
[1645147902841,0.00494535,2876.4,2875.9,1.11796386]
[1645147903038,0.00296127,2876.2,2875.9,1.11796386]
[1645147903238,0.00296127,2876.2,2875.9,3.45666386]
[1645147903441,0.00296127,2876.2,2876.0,1.48167907]
[1645147903640,0.00296127,2876.2,2875.9,2.58735386]
[1645147903841,0.00296127,2876.2,2876.0,1.0]
[1645147904040,0.00494535,2877.0,2876.0,1.0]
[1645147904243,0.00307728,2876.2,2876.1,0.86936]
[1645147904445,0.00307728,2876.2,2875.9,1.41796386]
[1645147905084,0.86942,2876.8,2875.9,1.41796386]
[1645147905283,0.00494535,2876.7,2876.6,0.95765755]
[1645147905483,0.00494535,2876.8,2876.6,0.95765755]
[1645147905685,0.00494535,2877.0,2876.6,0.95765755]
[1645147906090,0.00494535,2877.0,2876.7,0.86914]
[1645147906489,0.00494535,2877.0,2876.8,0.8691]
[1645147906693,0.00307697,2876.9,2876.0,1.0]
[1645147906993,0.00307697,2876.9,2876.1,1.48155486]
[1645147907189,0.00307697,2876.9,2876.1,0.3]
[1645147907190,0.87247697,2876.9,2876.1,0.3]
[1645147907390,0.00494535,2876.8,2875.8,0.3]
[1645147907592,0.00494535,2876.8,2876.2,0.9388461]
[1645147907790,0.0030771,2876.6,2876.2,0.9388461]
[1645147907992,0.00802245,2876.6,2876.2,0.9388461]
[1645147908637,0.87759245,2876.6,2876.2,0.9388461]
[1645147908837,0.87451535,2876.6,2876.2,0.9388461]
[1645147909039,0.00307714,2876.5,2876.2,0.9388461]
[1645147909237,0.87265714,2876.5,2876.2,0.9388461]
[1645147909742,0.87265714,2876.5,2875.8,0.6]
[1645147909937,0.87265714,2876.5,2875.8,1.6]
[1645147909938,0.86958,2876.5,2875.8,1.6]
[1645147910139,0.00494535,2876.6,2875.8,0.6]
[1645147910339,0.00307716,2876.5,2875.8,1.16949]
[1645147910538,0.00307716,2876.5,2875.8,0.3]
[1645147910738,0.00307716,2876.5,2875.6,1.7738]
[1645147910938,0.00307716,2876.5,2875.7,1.48178218]
[1645147911141,0.00494535,2876.6,2875.6,0.7738]
[1645147911341,0.00494535,2876.6,2876.4,0.86749618]
[1645147911643,0.86951,2876.5,2876.4,0.86749618]
[1645147911841,1.74400535,2876.5,2875.6,1.7738]
[1645147912052,0.86955,2876.5,2875.7,1.4817835]
[1645147912292,0.86955,2876.5,2875.7,2.4817835]
[1645147912487,0.86955,2876.5,2875.7,1.0]
[1645147912688,0.00307726,2876.2,2875.8,1.48175682]
[1645147912891,0.00307726,2876.2,2875.8,0.3]
[1645147913092,0.00307726,2876.2,2875.7,1.3]
[1645147913286,0.00307726,2876.2,2875.8,2.38028212]
[1645147913487,0.00494535,2876.6,2875.8,1.89852844]
[1645147913695,0.00494535,2876.6,2876.1,5.0]
[1645147913890,1.85409997,2877.6,2876.1,5.0]
[1645147913891,0.01230746,2876.5,2876.3,3.0]
[1645147914187,1.85409997,2877.6,2876.6,0.86918]
[1645147914188,0.00495466,2877.3,2876.6,0.86918]
[1645147914391,0.00495466,2877.5,2876.6,0.86918]
[1645147914795,0.00495466,2877.5,2876.8,0.86911]
[1645147914991,0.00341121,2877.5,2876.8,0.86911]
[1645147915189,0.00341121,2877.5,2877.3,1.14137184]
[1645147915390,0.00341121,2877.5,2877.3,2.01050184]
[1645147916041,0.00341121,2877.5,2877.4,0.3]
[1645147916236,0.87008521,2877.9,2877.4,0.3]
[1645147916436,0.87008521,2877.9,2877.4,2.16895]
[1645147916637,1.8227,2878.1,2877.4,2.16895]
[1645147916638,0.87008521,2878.0,2877.4,2.16895]
[1645147916836,1.8227,2878.1,2877.8,1.14985419]
[1645147916837,2.69278521,2878.1,2877.8,1.14985419]
[1645147917042,4.07259867,2878.3,2877.8,1.14985419]
[1645147917043,0.87008521,2878.0,2877.8,1.14985419]
[1645147917238,4.07259867,2878.3,2877.8,0.61382743]
[1645147917239,0.87008521,2877.9,2877.8,0.61382743]
[1645147917442,0.87008521,2877.9,2877.2,0.86913]
[1645147917640,0.87008521,2878.0,2877.3,0.86912]
[1645147917842,0.87008521,2878.0,2877.2,0.6]
[1645147918041,0.87008521,2878.0,2877.1,1.3]
[1645147918241,0.87008521,2878.0,2877.1,0.6]
[1645147918442,0.87008521,2878.0,2877.1,1.6]
[1645147918643,0.86916,2878.2,2877.6,1.17943855]
[1645147918644,0.00307457,2877.7,2877.6,1.17943855]
[1645147918843,0.00307457,2877.7,2877.6,1.47943855]
[1645147919544,0.87008521,2878.2,2877.6,1.47943855]
[1645147919783,0.00307453,2877.8,2877.6,2.34845855]
[1645147919988,0.00307453,2877.8,2877.6,1.47943855]
[1645147920787,0.87008521,2878.0,2877.6,2.34841855]
[1645147920988,0.00303408,2877.8,2877.6,1.47943855]
[1645147921891,0.87008521,2877.9,2877.6,1.47943855]
[1645147922089,0.87008521,2878.2,2877.6,1.47943855]
[1645147922289,0.00303408,2877.8,2877.6,1.47943855]
[1645147923194,3.65838521,2878.3,2877.6,1.47943855]
[1645147923433,0.00303408,2877.8,2877.6,1.47943855]
[1645147923835,2.80043452,2878.3,2877.6,1.47943855]
[1645147924337,2.7883,2878.3,2877.7,0.86886]
[1645147924537,2.7883,2878.3,2878.2,1.10664379]
[1645147924735,0.87008521,2878.4,2878.2,1.40664379]
[1645147924936,0.87008521,2878.4,2878.2,0.3]
[1645147925337,0.87008521,2878.5,2877.7,0.3]
[1645147925743,0.87008521,2878.4,2877.6,2.9067]
[1645147925946,0.87008521,2878.4,2877.7,1.0]
[1645147926143,0.87008521,2878.5,2878.3,1.1294042]
[1645147926343,0.87008521,2878.5,2878.3,1.4294042]
[1645147926945,0.87194464,2878.5,2878.3,1.4294042]
[1645147927186,0.00185943,2878.5,2878.3,1.4294042]
[1645147927986,0.87008521,2878.6,2878.3,1.4294042]
[1645147927987,2.61678521,2878.7,2878.3,1.4294042]
[1645147928187,0.00307629,2878.5,2878.3,1.4294042]
[1645147928590,0.82008521,2878.6,2878.3,1.4294042]
[1645147929190,1.7467,2878.7,2878.3,1.4294042]
[1645147929791,2.32680867,2879.0,2878.3,1.4294042]
[1645147930295,2.21139,2879.0,2878.3,1.4294042]
[1645147930490,2.03779,2879.0,2878.3,1.4294042]
[1645147931140,3.00391304,2879.1,2878.3,1.4294042]
[1645147931345,3.00391304,2879.1,2877.3,22.88647]
[1645147931346,4.36893,2878.9,2877.6,0.1736]
[1645147931541,1.95689867,2878.8,2878.3,0.3]
[1645147931742,2.82579867,2878.8,2877.3,0.3]
[1645147931940,0.00492989,2878.7,2877.3,0.3]
[1645147932140,0.6726,2878.6,2877.1,3.2559]
[1645147932339,0.6726,2878.6,2877.8,1.15777177]
[1645147932340,1.73829,2878.4,2877.8,1.15777177]
[1645147932541,2.23729,2878.4,2877.8,1.15777177]
[1645147932739,2.23729,2878.4,2877.8,1.45777177]
[1645147932944,0.86914,2878.1,2877.8,1.45777177]
[1645147933140,1.73833,2878.6,2877.8,1.45777177]
[1645147933141,1.91378575,2878.6,2877.8,1.45777177]
[1645147933341,0.499,2878.5,2877.8,1.45777177]
[1645147933741,0.1737,2878.7,2877.9,0.17054255]
[1645147933940,2.23721,2878.6,2878.5,1.16429589]
[1645147934145,3.5,2879.0,2878.5,1.16429589]
[1645147934146,0.50333734,2879.1,2878.5,1.64712344]
[1645147934341,1.4097,2879.3,2878.6,0.15539589]
[1645147934342,1.2361,2879.3,2878.6,0.15539589]
[1645147934543,0.499,2879.5,2878.6,0.15539589]
[1645147934787,4.28921826,2879.8,2878.6,0.15539589]
[1645147934985,0.499,2879.7,2878.6,0.15539589]
[1645147935195,0.499,2879.7,2879.5,1.03670579]
[1645147935196,0.499,2879.6,2879.5,1.03670579]
[1645147935398,4.87198734,2880.1,2879.5,1.03670579]
[1645147935399,1.00333734,2880.3,2879.5,1.53423488]
[1645147935593,1.00333734,2880.3,2879.6,0.1932247]
[1645147935594,0.5,2880.3,2879.6,0.1932247]
[1645147935893,2.72245142,2880.5,2879.6,0.1932247]
[1645147936092,0.1736,2881.1,2879.6,3.83142467]
[1645147936296,0.1736,2881.1,2880.4,1.08169299]
[1645147936491,0.1736,2881.1,2880.4,0.62150296]
[1645147936492,0.04206334,2881.1,2880.4,0.62150296]
[1645147936695,3.9484,2881.7,2880.5,7.5]
[1645147936895,0.00741827,2880.9,2880.6,5.23558]
[1645147937092,0.00741827,2880.9,2880.7,2.60314]
[1645147937294,0.499,2882.5,2882.0,1.16021918]
[1645147937295,0.1734,2882.5,2882.0,1.16021918]
[1645147937497,1.34808389,2882.9,2882.0,1.16021918]
[1645147937498,0.499,2882.9,2882.0,0.13565583]
[1645147937790,0.499,2882.9,2882.0,0.3]
[1645147937993,0.499,2882.9,2882.0,0.13217093]
[1645147938205,2.7723,2883.2,2882.1,1.19398587]
[1645147938206,0.87342197,2882.8,2882.1,1.19398587]
[1645147938437,0.87342197,2882.8,2882.2,0.14698261]
[1645147938633,0.87342197,2882.8,2882.2,1.23592564]
[1645147938835,0.87342197,2882.8,2882.3,0.18049328]
[1645147939034,0.87342197,2882.9,2882.3,3.68049328]
[1645147939234,0.41700979,2882.9,2882.3,0.18049328]
[1645147939437,3.92471195,2884.3,2882.4,1.165347]
[1645147939641,0.1734,2884.3,2882.5,3.5]
[1645147939935,2.819,2884.4,2882.4,20.28]
[1645147939936,1.19240241,2884.2,2883.3,0.3]
[1645147940135,1.19240241,2884.2,2882.4,1.0]
[1645147940136,25.4533,2884.1,2882.7,0.1719007]
[1645147940339,25.4533,2884.1,2882.4,1.0]
[1645147940340,25.28,2883.9,2882.4,0.3]
[1645147940536,5.0,2883.6,2882.4,0.3]
[1645147940739,2.40795,2883.5,2882.2,0.3]
[1645147940935,2.40795,2883.5,2882.1,0.29968774]
[1645147940936,1.17329351,2882.8,2882.1,0.29968774]
[1645147941138,1.17329351,2882.8,2882.1,0.13819997]
[1645147941139,1.67229351,2882.8,2882.1,0.13819997]
[1645147941542,1.67229351,2882.8,2881.4,1.1971249]
[1645147941543,0.00307573,2882.6,2881.4,1.1971249]
[1645147941742,0.499,2882.5,2881.4,1.1971249]
[1645147941938,0.499,2882.5,2881.0,1.94575441]
[1645147942486,0.499,2882.5,2881.4,1.31013308]
[1645147942685,0.00307603,2881.9,2881.4,1.31013308]
[1645147943088,0.00307603,2881.9,2881.5,3.65786182]
[1645147943292,0.00307603,2881.9,2881.6,1.0]
[1645147943489,0.6724,2883.6,2882.8,1.17400255]
[1645147943688,0.499,2883.6,2881.9,3.69509416]
[1645147943890,0.499,2883.6,2882.1,1.73497]
[1645147944091,0.499,2883.6,2881.9,4.69509416]
[1645147944092,0.499,2883.6,2882.2,3.69050281]
[1645147944289,1.5308,2883.7,2882.3,1.0]
[1645147944489,1.5308,2883.7,2882.4,3.68017089]
[1645147944702,5.8203,2884.2,2882.5,4.5]
[1645147944890,1.41781417,2884.1,2883.2,1.19581588]
[1645147945091,1.41781417,2884.1,2882.6,0.3]
[1645147945289,1.41781417,2884.1,2882.7,0.18618844]
[1645147945588,1.41781417,2884.1,2882.3,5.85248433]
[1645147945795,1.71781417,2884.1,2882.4,0.16511739]
[1645147946040,1.71781417,2884.1,2882.8,1.12278504]
[1645147946343,0.00307539,2883.4,2882.8,1.58169964]
[1645147946541,0.00307539,2883.4,2882.9,0.19994491]
[1645147946744,0.00307539,2883.4,2882.9,0.49994491]
[1645147946942,0.00307539,2883.4,2883.0,0.14072343]
[1645147947143,0.00307539,2883.4,2883.0,0.3]
[1645147947446,0.3373,2884.1,2882.5,20.41091899]
[1645147947642,0.3373,2884.1,2882.6,3.5]
[1645147947643,0.00285893,2883.3,2882.6,3.5]
[1645147947843,0.011434,2883.8,2882.6,0.15792871]
[1645147948042,0.00490524,2884.0,2882.6,0.15792871]
[1645147948644,0.00490524,2884.0,2883.1,1.01799852]
[1645147948645,0.90790811,2884.0,2883.1,1.01799852]
[1645147948844,0.90790811,2884.0,2883.1,1.50569793]
[1645147949043,0.90790811,2884.0,2883.2,0.15959503]
[1645147949250,0.298734,2884.1,2883.3,5.67929098]
[1645147949698,1.0,2884.7,2883.4,25.32800347]
[1645147949999,0.86697,2886.0,2883.4,25.32800347]
[1645147950000,0.5149904,2885.7,2883.6,1.73376]
[1645147950197,0.5149904,2885.7,2884.9,1.19003024]
[1645147950397,0.5149904,2885.7,2884.9,1.64138357]
[1645147950398,0.51004312,2885.7,2884.9,1.64138357]
[1645147950596,0.51004312,2885.7,2885.0,0.19145585]
[1645147951009,0.01104312,2885.7,2885.0,3.69145585]
[1645147951201,0.01104312,2885.7,2885.0,0.19145585]
[1645147951399,0.00373576,2886.4,2885.1,1.0]
[1645147951601,0.00373576,2886.4,2885.3,0.86652]
[1645147951801,0.00373576,2886.4,2885.6,1.16862044]
[1645147952101,0.00373576,2886.4,2885.3,0.3]
[1645147952102,0.32353889,2885.5,2885.3,0.3]
[1645147952298,0.32353889,2885.5,2885.4,0.15960594]
[1645147952500,0.82253889,2885.5,2884.3,0.02332]
[1645147952702,1.12253889,2885.5,2883.7,3.69391263]
[1645147952900,1.05588095,2885.2,2884.2,0.85478779]
[1645147953098,1.35588095,2885.2,2884.2,1.0337987]
[1645147953298,0.3,2885.2,2884.2,1.0337987]
[1645147953551,0.82253889,2885.5,2884.2,1.0337987]
[1645147953742,0.00307476,2884.8,2884.4,0.18526479]
[1645147953945,0.00307476,2884.8,2884.7,0.5]
[1645147954143,0.00307476,2884.8,2884.7,1.23485862]
[1645147954345,0.00307476,2884.8,2884.7,2.25523486]
[1645147954544,0.32353889,2885.5,2884.7,2.25523486]
[1645147954844,0.32353889,2885.5,2884.8,1.15456]
[1645147954845,0.00307256,2884.9,2884.8,1.15456]
[1645147955052,0.01228839,2885.3,2884.8,1.15456]
[1645147955053,0.01228839,2885.3,2884.9,6.5]
[1645147955242,0.01228839,2885.3,2885.0,2.91059]
[1645147955442,0.01228839,2885.3,2885.0,3.91059]
[1645147955842,0.32353889,2885.5,2885.1,1.18943949]
[1645147956051,0.32353889,2885.5,2885.2,1.02755]
[1645147956249,0.32353889,2885.5,2885.3,3.5]
[1645147956450,0.32353889,2885.5,2885.2,2.32755]
[1645147956653,0.32353889,2885.5,2885.2,1.15445]
[1645147957507,2.60067,2885.7,2885.2,1.15445]
[1645147957508,1.27054683,2885.7,2885.2,1.15445]
[1645147957721,2.60811224,2885.9,2885.3,0.1731]
[1645147957722,0.00729224,2885.9,2885.3,0.1731]
[1645147957915,1.1638,2887.9,2885.7,0.01283462]
[1645147958109,3.576e-05,2886.1,2886.0,5.0]
[1645147958309,0.86615,2887.8,2886.0,5.0]
[1645147958310,0.0174545,2888.6,2886.1,6.50823632]
[1645147958509,0.0174545,2888.6,2887.9,0.95380805]
[1645147958510,0.01244952,2888.0,2887.9,0.95380805]
[1645147958711,0.01244952,2888.0,2887.9,2.10745805]
[1645147959309,0.01244952,2888.0,2887.9,3.10745805]
[1645147959513,6.06149,2889.8,2888.0,6.5]
[1645147959710,0.02489904,2889.4,2888.1,1.3265]
[1645147959908,0.04206333,2888.5,2888.1,1.1536]
[1645147960112,0.04206333,2888.5,2888.3,0.86552]
[1645147960308,0.02489904,2889.4,2888.4,6.6731]
[1645147960509,0.02489904,2889.4,2888.8,0.95080671]
[1645147960711,0.02489904,2889.4,2888.5,1.0]
[1645147960935,0.02489904,2889.4,2888.4,1.3266]
[1645147961348,0.02489904,2889.4,2888.4,0.8535]
[1645147961349,0.01241754,2889.3,2888.4,0.8535]
[1645147961545,5.0,2889.1,2888.4,0.8535]
[1645147961741,1.01000962,2888.8,2888.4,0.8535]
[1645147962142,1.33490866,2888.8,2887.2,3.5]
[1645147962344,1.33490866,2888.8,2888.1,0.5]
[1645147962345,5.86613,2888.7,2888.1,0.5]
[1645147962546,5.86613,2888.7,2886.8,3.5]
[1645147962743,4.92801075,2888.6,2886.4,0.2783]
[1645147962948,0.86641,2887.7,2886.4,0.2783]
[1645147963146,0.86641,2887.7,2886.4,1.34456348]
[1645147963147,0.97316999,2887.4,2886.4,1.34456348]
[1645147963343,0.00307871,2887.6,2886.4,1.34456348]
[1645147963543,0.3,2887.4,2886.4,1.34456348]
[1645147963743,0.00307871,2887.6,2886.4,1.34456348]
[1645147964142,0.01802175,2887.6,2886.4,1.34456348]
[1645147964343,0.01494304,2887.6,2887.0,1.03203845]
[1645147964543,0.01494304,2887.6,2887.0,1.17367238]
[1645147964812,7.893e-05,2887.1,2887.0,1.17367238]
[1645147965009,0.01231388,2887.6,2887.1,6.5]
[1645147965208,0.01483671,2888.0,2887.3,1.5]
[1645147965209,0.009956,2888.0,2887.3,1.5]
[1645147965407,0.009956,2888.0,2887.4,3.5]
[1645147965606,0.009956,2888.0,2887.4,0.13918713]
[1645147965810,0.009956,2888.0,2887.5,1.73610631]
[1645147966015,0.009956,2888.0,2887.6,0.416]
[1645147966213,0.009956,2888.0,2887.7,2.59641]
[1645147966414,0.009956,2888.0,2887.8,1.0]
[1645147966618,0.009956,2888.0,2887.8,1.62680766]
[1645147966814,0.009956,2888.0,2887.9,0.15646991]
[1645147967015,0.012833,2888.0,2887.9,0.15646991]
[1645147968014,0.009956,2888.0,2887.9,0.15646991]
[1645147968218,0.01150621,2888.5,2888.0,1.5]
[1645147968445,0.01150621,2888.5,2888.3,0.1466088]
[1645147968643,0.01150621,2888.5,2888.3,0.4528]
[1645147968844,0.01150621,2888.5,2888.4,0.16399691]
[1645147969248,0.00488071,2888.6,2888.5,0.96487538]
[1645147969448,3.46274,2889.9,2888.6,6.0]
[1645147969650,1.0,2890.0,2888.7,3.5]
[1645147969850,1.0,2890.0,2889.5,0.4528]
[1645147970052,1.0,2890.0,2889.6,0.17188458]
[1645147970248,1.0,2890.0,2889.6,0.47188458]
[1645147970447,0.0578976,2890.2,2889.8,2.4528]
[1645147970650,0.0161567,2890.7,2890.1,1.0]
[1645147970850,0.0161567,2890.7,2890.2,3.5]
[1645147971052,0.0161567,2890.7,2890.3,0.1729]
[1645147971354,0.0161567,2890.7,2890.4,1.08103344]
[1645147971551,0.0161567,2890.7,2890.5,0.4528]
[1645147971759,3.49713025,2891.8,2890.9,0.96956061]
[1645147971955,0.38238019,2890.6,2890.5,0.7528]
[1645147972394,0.38238019,2890.6,2889.3,1.541]
[1645147972610,0.38238019,2890.6,2889.3,0.86524]
[1645147972796,0.38238019,2890.6,2889.4,0.1729]
[1645147972994,0.00723267,2890.5,2890.3,0.95004025]
[1645147973194,0.00723267,2890.5,2889.1,0.1729]
[1645147973396,0.30723267,2890.5,2889.1,0.85329]
[1645147973596,0.00723267,2890.5,2889.2,0.1729]
[1645147973800,0.00723267,2890.5,2889.3,2.19626]
[1645147974097,0.38238019,2890.6,2889.4,4.03695]
[1645147974304,0.01244915,2890.6,2889.8,5.0]
[1645147974498,1.73913628,2891.4,2890.5,5.0]
[1645147974499,0.00918628,2891.4,2890.5,5.0]
[1645147974701,2.636815,2892.9,2892.3,1.00609692]
[1645147974896,2.636815,2892.9,2892.3,0.40899354]
[1645147975298,0.86461,2892.8,2892.3,0.3]
[1645147975700,2.636815,2892.9,2890.7,0.85283]
[1645147975701,0.86491,2892.1,2890.7,0.85283]
[1645147975944,3.052815,2892.9,2890.6,0.13819997]
[1645147975945,0.86512,2891.9,2890.6,0.13819997]
[1645147976149,3.5,2891.8,2890.1,0.5]
[1645147976352,0.84439053,2891.0,2890.1,0.5]
[1645147976548,0.84439053,2891.0,2889.7,1.8578]
[1645147976747,0.84439053,2891.0,2890.9,0.5]
[1645147976953,0.86531,2890.9,2888.9,1.73057]
[1645147977346,3.5,2890.8,2888.7,0.85342]
[1645147977548,0.86536,2890.3,2889.4,1.09852401]
[1645147977951,0.86536,2890.3,2890.1,0.5]
[1645147978348,0.86536,2890.3,2889.4,1.09852401]
[1645147978749,0.86536,2890.3,2890.0,0.95474627]
[1645147978950,0.86536,2890.3,2890.1,0.5]
[1645147979152,0.86830183,2890.5,2890.1,0.8]
[1645147979352,0.86830183,2890.5,2890.1,0.3]
[1645147979554,0.86830183,2890.5,2890.3,0.5]
[1645147980003,0.86521,2890.5,2890.3,0.5]